Cogmind - Beta 13 X2 @@@ ROGUE MODE // 2024.02.12 @ 01:11:08 Player: H3-RMN Result: Destroyed by AV-261(R) with Subdweller Beam Cannon Performance ------------- Evolutions (0) 0 Regions Visited (2) 400 Robots Destroyed (27) 135 Value Destroyed (623) 623 Prototype IDs (7) 140 Alien Tech Used (0) 0 Bonus (0) 0 TOTAL SCORE: 1298 Bonus ------- None Cogmind --------- Core Integrity 0/250 Matter 157/300 Energy 93/100 System Corruption 0% Temperature Warm (170) Movement Rolling (125) Ox3 Location -10/Subcaves Parts ------- > --- POWER (1) -------- (None) > --- PROPULSION (2) --- Wheel > --- UTILITY (2) ------ Large Storage Unit Light Armor Plating > --- WEAPON (2) ------- Subdweller Beam Cannon Assault Rifle > --- INVENTORY (15) --- Subdweller Monowheel Disposable Heat Sink Large Storage Unit High-capacity Matter Pod (96) Transport Network Coupler Light Armor Plating Cobbler Unit Medium Laser Subdweller Beam Cannon Grenade Launcher Datajack Multitool Peak State ------------ > --- POWER ------------ Light Ion Engine > --- PROPULSION ------- Aluminum Leg Aluminum Leg > --- UTILITY ---------- Small Storage Unit Improved Terrain Scanner > --- WEAPON ----------- EM Pulse Gun Assault Rifle > --- INVENTORY -------- Ion Engine Light Treads Light Treads Wheel Compact Wheel Medium Laser [Rating: 9] Favorites ----------- Power Ion Engine Engine Ion Engine Propulsion Aluminum Leg Leg Aluminum Leg Wheel Wheel Utility Light Armor Plating Device Improved Terrain Scanner Storage Large Storage Unit Processor Visual Processing Unit Protection Light Armor Plating Weapon Assault Rifle Energy Gun Medium Laser Energy Cannon Subdweller Beam Cannon Ballistic Gun Assault Rifle Ballistic Cannon Light Cannon Build | -11 -10 -10 ------- Run | Yrd Mat Sub Slots Evolved . | . . . Power . | . . . Propulsion . | . . . Utility . | . . . Weapon . | . . . Parts Attached 27 | 7 8 12 Power 4 | 1 2 1 Engine 4 | 1 2 1 Core . | . . . Reactor . | . . . Propulsion 4 | 2 1 1 Treads . | . . . Leg 3 | 2 1 . Wheel 1 | . . 1 Hover . | . . . Flight . | . . . Utility 8 | 2 4 2 Device 1 | 1 . . Storage 3 | 1 2 . Processor 1 | . 1 . Hackware . | . . . Protection 3 | . 1 2 Artifact . | . . . Weapon 11 | 2 1 8 Energy Gun 5 | 1 1 3 Energy Cannon 1 | . . 1 Ballistic Gun 3 | 1 . 2 Ballistic Cannon 2 | . . 2 Launcher . | . . . Special Weapon . | . . . Impact Weapon . | . . . Slashing Weapon . | . . . Piercing Weapon . | . . . Special Melee Weapon . | . . . Unidentified Prototypes . | . . . Parts Lost 8 | . . 8 Power 2 | . . 2 Propulsion 2 | . . 2 Utility 2 | . . 2 Weapon 2 | . . 2 Highest Loss Streak 5 | . . 5 To Critical Strikes . | . . . Average Slot Usage (%) 99 | . 99 97 Engine 13 | . 13 13 Leg 25 | . 28 20 Wheel 1 | . . 6 Storage 14 | . 14 14 Processor 1 | . 2 . Protection 11 | . 10 13 Energy Gun 13 | . 14 13 Ballistic Gun 11 | . 14 4 Ballistic Cannon 2 | . . 9 Naked Turns . | . . . Heaviest Build 36 | 13 32 36 Greatest Support 20 | 20 20 20 Greatest Overweight (x) 3 | 1 1 3 Average Overweight (x) 1 | . . 2 Largest Inventory Capacity 15 | 8 15 15 Average Capacity 12 | 7 12 15 Most Carried 15 | 7 15 15 Average Carried 12 | 4 12 14 Final Capacity 15 | 8 15 15 Final Carried 15 | 6 15 13 Class Distribution -------------------- 100% | Mutant Dominant Class ---------------- Mutant | -10/Materials Mutant | -10/Subcaves Resources | -11 -10 -10 ----------- Run | Yrd Mat Sub Matter Collected 777 | 282 313 182 Remotely . | . . . Salvage Created 971 | 61 671 239 Parts 66 | 7 44 15 Haulers Intercepted 2 | . 2 . Recyclers Shooed 1 | . 1 . Parts Field Recycled . | . . . Retrieved Matter . | . . . Parts Self-Destructed . | . . . Prevented . | . . . Kills | -11 -10 -10 ------- Run | Yrd Mat Sub Combat Hostiles Destroyed 16 | . 10 6 Guns 15 | . 10 5 Cannons 1 | . . 1 Classes Destroyed 11 | 1 7 3 Builder 2 | . 2 . Tunneler 3 | 3 . . Hauler 2 | . 2 . Recycler 1 | . 1 . Operator 1 | . 1 . Watcher 2 | . 2 . Swarmer 3 | . 3 . Grunt 7 | . 7 . Artisan 1 | . . 1 Cobbler 1 | . . 1 Subdweller 6 | . . 6 Best Kill Streak 3 | 3 3 3 Combat Bots Only 3 | . 3 3 Max Kills in Single Turn 1 | 1 1 1 Gunslinging . | . . . Exploded . | . . . Melee . | . . . Uniques/NPCs Destroyed . | . . . Combat | -11 -10 -10 -------- Run | Yrd Mat Sub Hostile Shots Fired 95 | . 47 48 Missed 28 | . 17 11 Damage Taken 1300 | . 351 949 Core 250 | . 61 189 Absorbed by Shields . | . . . Regen/Repaired (Parts) 56 | . 56 . Core Remaining (%) 100 | 100 . . Volleys Fired 121 | 4 58 59 Largest 2 | 2 2 2 Hottest 130 | 60 70 130 Shots Fired 202 | 8 115 79 Gun 154 | 8 115 31 Cannon 48 | . . 48 Launcher . | . . . Special . | . . . Kinetic 116 | 4 58 54 Thermal 64 | . 44 20 Explosive . | . . . Electromagnetic 22 | 4 13 5 Robot Hit Streak 17 | 4 17 17 Robot Miss Streak 4 | 2 4 1 Penetration Max . | . . . Secondary Targets . | . . . Shots Hit Robots 121 | 4 78 39 Core Hits 49 | 3 30 16 Critical Kills 1 | . 1 . Critical Parts Destroyed 1 | . 1 . Critical Strikes 6 | . 5 1 Burn 4 | . 3 1 Destroy 2 | . 2 . Melee Attacks . | . . . Impact . | . . . Slashing . | . . . Piercing . | . . . Sneak Attacks . | . . . Combat Hostiles . | . . . Follow-up Attacks . | . . . Damage Inflicted 1666 | 53 1114 499 Guns 1429 | 53 1114 262 Cannons 189 | . . 189 Explosions 48 | . . 48 Melee . | . . . Ramming . | . . . Kinetic 773 | 12 561 200 Thermal 677 | . 412 265 Explosive . | . . . Electromagnetic 216 | 41 141 34 Impact . | . . . Slashing . | . . . Piercing . | . . . Highest Corruption . | . . . Average Corruption . | . . . Corruption Purged . | . . . Corruption Blocked . | . . . Overload Shots . | . . . Overflow Damage . | . . . Projectiles . | . . . Explosions . | . . . Melee . | . . . Knockbacks . | . . . Impact . | . . . Kinetic . | . . . Secondary . | . . . Self-Inflicted Damage . | . . . Shots . | . . . Rammed . | . . . Targets Rammed . | . . . Kicked . | . . . Crushed . | . . . Highest Temperature 307 | . 135 307 Average Temperature 54 | . 49 140 Received Heat Transfer 595 | . 168 427 Siege Activations . | . . . Robots Corrupted . | . . . Combat Hostiles . | . . . Parts Fried . | . . . Impact Corruptions . | . . . Robots Melted . | . . . Combat Hostiles . | . . . Parts Melted 6 | . 2 4 Heat Transferred 2085 | . 1406 679 Parts Sabotaged . | . . . Parts Stolen . | . . . Parts Stripped . | . . . Power Chain Reactions 1 | . . 1 Missiles Intercepted . | . . . Alert | -11 -10 -10 ------- Run | Yrd Mat Sub Peak Influence 230 | 15 230 . Initial 9 | . 9 . Average 48 | 6 51 . Maximum Alert Level 1 | . 1 . Low Security (%) 97 | 100 97 . Level 1 2 | . 2 . Level 2 . | . . . Level 3 . | . . . Level 4 . | . . . Level 5 . | . . . High Security . | . . . Max Security . | . . . Squads Dispatched 2 | . 2 . Investigation 1 | . 1 . Extermination . | . . . Reinforcement 1 | . 1 . Assault . | . . . Garrison . | . . . Intercept . | . . . Searches Triggered . | . . . Construction Impeded . | . . . Haulers Reinforced . | . . . Active Scanning Responses . | . . . Cargo Convoy Interrupts . | . . . Stealth | -11 -10 -10 --------- Run | Yrd Mat Sub Distress Signals 2 | . 2 . Communications Jammed . | . . . Distress Signals . | . . . Times Spotted 27 | . 20 7 Peak Tracking Total 3 | . 3 3 Tactical Retreats . | . . . Traps | -11 -10 -10 ------- Run | Yrd Mat Sub Traps Triggered . | . . . Indirectly . | . . . Trap Hack Attempts . | . . . Triggered . | . . . Disarmed . | . . . Reprogrammed . | . . . Reused . | . . . Traps Extracted . | . . . Installed . | . . . Triggered . | . . . Machines | -11 -10 -10 ---------- Run | Yrd Mat Sub Machines Disabled . | . . . Max in Single Turn . | . . . Machines Repaired . | . . . Machines Dismantled . | . . . Machines Sabotaged . | . . . Overloaded Fab Kills . | . . . Hacking | -11 -10 -10 --------- Run | Yrd Mat Sub Machines Accessed 9 | . 9 . Terminals 6 | . 6 . Fabricators . | . . . Repair Stations 1 | . 1 . Recycling Units 2 | . 2 . Scanalyzers . | . . . Garrison Access . | . . . Total Hacks 41 | . 41 . Successful 21 | . 21 . Failed 20 | . 20 . Catastrophic . | . . . Database Lockouts . | . . . Manual 25 | . 25 . Terminals 33 | . 33 . Fabricators . | . . . Repair Stations 2 | . 2 . Recycling Units 6 | . 6 . Scanalyzers . | . . . Garrison Access . | . . . Terminal Hacks 12 | . 12 . Robot Analysis 2 | . 2 . Prototype ID Bank 5 | . 5 . Branch Access Points 1 | . 1 . Unreport Threat 1 | . 1 . Locate Traps 3 | . 3 . Fabricator Hacks . | . . . Repair Station Hacks 2 | . 2 . Scan Component 1 | . 1 . Repair 1 | . 1 . Recycling Unit Hacks 3 | . 3 . Report Inventory 2 | . 2 . Retrieve Components 1 | . 1 . Scanalyzer . | . . . Garrison Access Hacks . | . . . Unauthorized Hacks 4 | . 4 . Terminals 2 | . 2 . Track 1 | . 1 . Botnet 1 | . 1 . Fabricators . | . . . Repair Stations . | . . . Recycling Units 2 | . 2 . Mask 1 | . 1 . Tunnel 1 | . 1 . Scanalyzers . | . . . Garrison Access . | . . . Data Cores Recovered . | . . . Used . | . . . Hacking Detections 7 | . 7 . Full Trace Events 2 | . 2 . Feedback Events . | . . . Feedback Blocked . | . . . Robot Schematics Acquired . | . . . Robots Built . | . . . Authchips . | . . . Time . | . . . Total Robot Build Rating . | . . . Part Schematics Acquired . | . . . Parts Built . | . . . Authchips . | . . . Time . | . . . Total Part Build Rating . | . . . Parts Repaired 1 | . 1 . Time 26 | . 26 . Parts Recycled . | . . . Recycled Matter . | . . . Retrieved Matter . | . . . Retrieved Components 3 | . 3 . Parts Scanalyzed . | . . . Part Schematics Acquired . | . . . Parts Damaged . | . . . Bothacking | -11 -10 -10 ------------ Run | Yrd Mat Sub Used RIF Installer . | . . . Robots Hacked . | . . . Non-combat . | . . . Combat . | . . . Robot Hacks Applied . | . . . Relay Couplers Released . | . . . Fabnet Peak Effective % . | . . . Robots Rewired . | . . . Allies Hacked . | . . . Hacks Repelled . | . . . Allies | -11 -10 -10 -------- Run | Yrd Mat Sub Total Allies . | . . . Largest Group . | . . . Highest-Rated Group . | . . . Highest-Rated Ally . | . . . Total Orders . | . . . Ally Attacks . | . . . Total Damage . | . . . Kills . | . . . Allies Corrupted . | . . . Allies Melted . | . . . Intel | -11 -10 -10 ------- Run | Yrd Mat Sub Robot Analysis Total 2 | . 2 . Derelict Logs Recovered 1 | . . 1 Drone Launches . | . . . Drone Recoveries . | . . . Exploration | -11 -10 -10 ------------- Run | Yrd Mat Sub Turns Passed 2412 | 119 1651 642 Spaces Moved 1014 | 58 633 323 Core 8 | 8 . . Treads . | . . . Legs 794 | 50 633 111 Wheels 212 | . . 212 Hover . | . . . Flight . | . . . Fastest Speed 50 | 50 120 110 Average Speed 153 | 112 161 146 Slowest Speed 190 | 120 190 190 Overloaded Moves . | . . . Propulsion Burnouts . | . . . Robots Hopped . | . . . Cave-ins Triggered . | . . . Exploration Rate (%) 41 | 5 95 25 Regions Visited 2 Branch Regions 1 Pre-discovered Areas 2 | . 1 1 Known Exits Taken . | . . . Unknown Exits Taken 2 | 1 1 . Scrap Searched . | . . . Spaces Dug . | . . . Terrain Destroyed 5 | . . 5 Melee . | . . . Projectile . | . . . AOE 5 | . . 5 Terrain Rammed . | . . . Walls Destroyed . | . . . Machines Disabled . | . . . Actions | -11 -10 -10 --------- Run | Yrd Mat Sub Total 1663 | 101 1151 411 Wait 459 | 26 427 6 Move 1012 | 57 632 323 Hop . | . . . Pick Up 29 | 7 15 7 Fast Attach 10 | 6 4 . Attach 7 | 1 . 6 Detach 1 | . 1 . Swap 10 | . 4 6 Drop 14 | . 10 4 Fire 121 | 4 58 59 Melee . | . . . Ram . | . . . Kick . | . . . Crush . | . . . Escape Stasis . | . . . Rewire . | . . . Trap . | . . . Miscellaneous . | . . . Route ------- -11/Scrapyard -10/Materials (discovered 6 exits: [*Mat x3] / *Min x2 / [*Sub]) -10/Subcaves History --------- Turn | Location | Event 6 | -11/Scrapyard | Discovered new exit (range 15) 120 | -11/Scrapyard | Entered Materials 217 | -10/Materials | Identified exit to Mines 278 | -10/Materials | Discovered new exit (range 13) 309 | -10/Materials | Build established: Mutant 462 | -10/Materials | Discovered new exit (range 9) 1130 | -10/Materials | Discovered new exit (range 5) 1331 | -10/Materials | Repaired Ion Engine 1747 | -10/Materials | Discovered new exit (range 5) 1771 | -10/Materials | Entered Subcaves 2070 | -10/Subcaves | Ambushed by angry Subdweller bent on revenge 2086 | -10/Subcaves | Core integrity fell below 50% 2142 | -10/Subcaves | Lost 5 parts (1p1n2u1w) 2170 | -10/Subcaves | Shifting Twisted Machinery released Sub. Beam Cannon 2182 | -10/Subcaves | Shifting Twisted Machinery released Sub. Beam Cannon 2380 | -10/Subcaves | Learned location of Storage (-9) 2410 | -10/Subcaves | Core integrity fell below 20% 2413 | -10/Subcaves | Destroyed by AV-261(R) with Subdweller Beam Cannon Last Messages --------------- 02098_ OQ-FJM(R) destroyed. 02111_ Lgt. Armor Plating destroyed. 02116_ FJ-XOE(R) suffers critical hit (Burn). 02116_ FJ-XOE(R) destroyed. 02126_ Acquired 5 matter. 02128_ Acquired 44 matter. 02131_ Acquired Disposable Heat Sink. 02143_ Acquired 32 matter. 02146_ Acquired Sub. Monowheel. Sub. Beam Cannon falls loose from the Twisted Machinery. 02183_ Acquired Sub. Beam Cannon. 02266_ Acquired 4 matter. 02273_ Acquired 2 matter. 02380_ Acquired derelict log, extracted data. World map updated: -9/Storage. 02397_ Lgt. Cannon destroyed. 02405_ Lgt. Ion Engine destroyed. 02407_ Critical hit (Meltdown: +250). 02408_ Aluminum Leg destroyed. 02409_ RH-8XA(R) destroyed. Map ----- +----------------------------------------------------+ | ?????????????????????????????????????????????????? | | ?????????????????????????????????????????????????? | | ?????????????????????????????????????????????????? | | ?????????????????????????????????????????????????? | | ?????????????????????????????????????????????????? | | ?????????????????????????????????????????????????? | | ?????????????????????????????????????????????????? | | ?????????????????????????????????????????????????? | | ?????????????????????????????????????????????????? | | ?????????????????????????????????????????????????? | | ?????????????????????????????????????????????????? | | ?????????????????????????????????????????????????? | | ?????????????????????????????????????????????????? | | ?????????????????????????????????????????#######?? | | ????????????????????????????????????????## ##? | | ???????????????????????????????????###### ## | | ??????????????????????????????????## # ### | | ?????????????????????????????????## #### | | ????????????????????#????????????# ##?## | | ???????????????????## ??????????## # ##??# | | ??????????????????## "??????# # # ## #???# | | ??????????????????# "" # #??## | | ???????????????????#"" ?# # #### ## #### | | ???????????????????# ??######### ## | | ??????????????# ### =### # # #### | | ????????? &%@ #??#### | | ????????? &R ### #?????## | | ????????? ##?# ## ####??????### | | ?????????? ### ##??######???????????## | | ?????????? ?????### ###?????????????????????## | | ????????????????????###?????????????????????????## | | ?????????????????????????????????????????????????? | | ?????????????????????????????????????????????????? | | ?????????????????????????????????????????????????? | | ?????????????????????????????????????????????????? | | ?????????????????????????????????????????????????? | | ?????????????????????????????????????????????????? | | ?????????????????????????????????????????????????? | | ?????????????????????????????????????????????????? | | ?????????????????????????????????????????????????? | | ?????????????????????????????????????????????????? | | ?????????????????????????????????????????????????? | | ?????????????????????????????????????????????????? | | ?????????????????????????????????????????????????? | | ?????????????????????????????????????????????????? | | | | | | | | | | | +----------------------------------------------------+ Best States ------------- Heat Dissipation 25 Energy Generation 10 Energy Capacity 250 Matter Stores 300 Matter Capacity 300 Sight Range 18 Terrain Scan Range 16 Terrain Scan Density 10 Armor Coverage 150 Evasion (%) 55 Item Schematics ----------------- None Robot Schematics ------------------ None Fabricated ------------ Nothing Alien Tech Used ----------------- None Achievements -------------- None Challenges ------------ None Game ------ Seed MinesnifferCloakEngine Manual? 0 Play Time 00:17:32 Cumulative 543.8 hours Start 2024.02.12 @ 00:53:15 End 2024.02.12 @ 01:11:08 Sessions 1 Manual Loads 0 Difficulty Rogue Special Mode None Game No. 207 Rogue 186 Adventurer 3 Explorer 18 Win Type - Total 13 Types 8/2/1/1/0/1/0/0/0 Lore% 85 Gallery% 93 Achievement% 82 Wizard Run 0 Options --------- ASCII 0 Keyboard 0 Movement Numpad Keybinds 0 Fullscreen 1 Font 18/SmallcapsGlow Map View 76x50 Zoom Use 0% Tactical HUD 1 Map Filters NONE Filters NONE Steam 1 RUN: 2b504aea-2f63-491e-967b-126dabffeb21